bitfinex-derivatives/quotes_BTCF0:USTF0_20241214
["timestamp","ask_amount","ask_price","bid_price","bid_amount"]
[1734167180452,1.07964085,101710.0,101700.0,0.07060571]
[1734167180654,1.07953452,101710.0,101700.0,0.07060571]
[1734167180854,1.07961507,101710.0,101700.0,0.07060571]
[1734167181153,1.07953452,101710.0,101700.0,0.07060571]
[1734167182056,0.90281908,101710.0,101700.0,0.07060571]
[1734167182251,1.10854238,101710.0,101700.0,0.11364284]
[1734167183149,0.90281908,101710.0,101700.0,0.07060571]
[1734167183754,1.10854238,101710.0,101700.0,0.07060571]
[1734167183958,0.90281908,101710.0,101700.0,0.07060571]
[1734167184156,0.84203183,101710.0,101700.0,0.10380571]
[1734167184350,0.90281908,101710.0,101700.0,0.10380571]
[1734167184550,0.78124458,101710.0,101700.0,0.10380571]
[1734167184752,0.90281908,101710.0,101700.0,0.10380571]
[1734167185149,0.90292432,101710.0,101700.0,0.10380571]
[1734167185354,0.90289266,101710.0,101700.0,0.10380571]
[1734167185651,0.90281908,101710.0,101700.0,0.10380571]
[1734167185953,0.92260352,101710.0,101700.0,0.10380571]
[1734167186948,0.92260352,101710.0,101700.0,0.05306011]
[1734167187156,0.049165,101700.0,101680.0,0.00010211]
[1734167187365,1.12110512,101690.0,101680.0,0.04314546]
[1734167187552,1.00853973,101690.0,101680.0,0.04314546]
[1734167188153,1.00853973,101690.0,101680.0,0.04364546]
[1734167188355,1.1558665,101690.0,101680.0,0.04364546]
[1734167189163,1.1558665,101690.0,101680.0,0.04314546]
[1734167190264,0.97898053,101690.0,101680.0,0.04364546]
[1734167190962,0.91819328,101690.0,101680.0,0.04364546]
[1734167191266,1.03976778,101690.0,101680.0,0.04314546]
[1734167191564,1.06923047,101690.0,101680.0,0.00010211]
[1734167191761,1.06923047,101690.0,101670.0,0.0945]
[1734167191762,0.049175,101680.0,101670.0,0.0945]
[1734167191965,0.67881754,101680.0,101670.0,0.13754589]
[1734167192758,0.67890039,101680.0,101670.0,0.13754589]
[1734167193260,0.79664716,101680.0,101670.0,0.13754589]
[1734167194258,0.79664716,101680.0,101670.0,0.13804589]
[1734167196066,0.80708917,101680.0,101670.0,0.13804589]
[1734167199868,0.65982113,101680.0,101670.0,0.13804589]
[1734167201367,0.65982113,101680.0,101670.0,0.095]
[1734167202171,0.53824663,101680.0,101670.0,0.15578725]
[1734167202466,0.50873537,101680.0,101670.0,0.18722563]
[1734167202668,0.56952262,101680.0,101670.0,0.24801288]
[1734167203269,0.68726939,101680.0,101670.0,0.18722563]
[1734167203571,0.56952262,101680.0,101670.0,0.18722563]
[1734167204274,0.56952262,101680.0,101670.0,0.24801288]
[1734167204978,0.49829336,101680.0,101670.0,1.04801288]
[1734167205166,0.41005785,101680.0,101670.0,1.04801288]
[1734167205369,0.41005785,101680.0,101670.0,2.54801288]
[1734167205680,0.36015785,101680.0,101670.0,2.54801288]
[1734167206177,0.4689481,101690.0,101670.0,2.90831288]
[1734167206472,0.4689481,101690.0,101680.0,0.10996225]
[1734167206473,0.49820751,101690.0,101680.0,0.10996225]
[1734167206669,0.49832285,101690.0,101680.0,0.10996225]
[1734167207172,0.49832285,101690.0,101680.0,0.15300788]
[1734167207767,0.41008734,101690.0,101680.0,0.15300788]
[1734167207971,0.42037867,101690.0,101680.0,0.15300788]
[1734167208168,0.50861418,101690.0,101680.0,0.15300788]
[1734167211868,0.44915085,101690.0,101680.0,0.21379513]
[1734167212072,0.00011534,101690.0,101680.0,0.87459513]
[1734167212279,0.00011534,101690.0,101680.0,1.37459513]
[1734167212780,0.70883053,101710.0,101680.0,2.87459513]
[1734167212984,0.60136826,101710.0,101700.0,0.049165]
[1734167213189,0.60186826,101710.0,101700.0,0.09221063]
[1734167213878,0.60186826,101710.0,101700.0,0.15297978]
[1734167214179,0.60136826,101710.0,101700.0,0.15297978]
[1734167214374,0.60136826,101710.0,101700.0,0.10995225]
[1734167215175,0.60186826,101710.0,101700.0,0.10995225]
[1734167215381,0.51363275,101710.0,101700.0,0.10995225]
[1734167216280,0.51313275,101710.0,101700.0,0.10995225]
[1734167216874,0.4523455,101710.0,101700.0,0.10995225]
[1734167217277,0.4528455,101710.0,101700.0,0.10995225]
[1734167217677,0.51363275,101710.0,101700.0,0.10995225]
[1734167218188,0.51313275,101710.0,101700.0,0.10995225]
[1734167219085,0.51313275,101710.0,101700.0,0.049165]
[1734167219285,0.51363275,101710.0,101700.0,0.049165]
[1734167220384,0.51313275,101710.0,101700.0,0.049165]
[1734167221290,0.51363275,101710.0,101700.0,0.049165]
[1734167221484,0.54593275,101710.0,101700.0,0.049165]
[1734167222386,0.54543275,101710.0,101700.0,0.049165]
[1734167223181,0.54593275,101710.0,101700.0,0.049165]
[1734167223882,0.049165,101700.0,101690.0,0.112568]
[1734167224076,0.47075225,101700.0,101690.0,0.049168]
[1734167224282,0.47075225,101700.0,101690.0,0.09220007]
[1734167226192,0.04917,101690.0,101680.0,2.080373]
[1734167226392,0.50075725,101690.0,101680.0,1.580373]
[1734167227186,0.43997,101690.0,101680.0,1.580373]
[1734167227592,0.07917,101690.0,101680.0,1.580373]
[1734167227780,0.43997,101690.0,101680.0,1.580373]
[1734167227985,0.43997,101690.0,101680.0,1.64116025]
[1734167228282,0.43997,101690.0,101680.0,1.6841962]
[1734167230492,0.50075725,101690.0,101680.0,1.62340895]
[1734167231095,0.50075725,101690.0,101680.0,1.6841962]
[1734167231096,0.43997,101690.0,101680.0,1.6841962]
[1734167233599,0.3608,101690.0,101680.0,1.74498345]
[1734167233897,0.61594828,101700.0,101690.0,0.049171]
[1734167234098,0.61594828,101700.0,101690.0,0.10995825]
[1734167234099,0.49820151,101700.0,101690.0,0.10995825]
[1734167234395,0.409966,101700.0,101690.0,0.1529942]
[1734167234699,0.68863078,101710.0,101700.0,0.549166]
[1734167234998,0.68863078,101710.0,101700.0,0.6529892]
[1734167235196,0.68863078,101710.0,101700.0,2.1529892]
[1734167235802,0.65633078,101710.0,101700.0,2.1529892]
[1734167235994,0.53858401,101710.0,101700.0,2.1529892]
[1734167236904,0.53858401,101710.0,101700.0,2.1838892]
[1734167239100,0.53858401,101710.0,101700.0,0.6838892]
[1734167239804,0.48942001,101710.0,101700.0,0.6838892]
[1734167247714,0.48942001,101710.0,101700.0,0.74467645]
[1734167249306,0.44903551,101710.0,101700.0,0.74467645]
[1734167250207,0.3608,101710.0,101700.0,0.74467645]
[1734167252122,0.3608,101710.0,101700.0,2.24467645]
[1734167253914,0.44903551,101710.0,101700.0,2.24467645]
[1734167254114,0.44903551,101710.0,101700.0,2.2016405]
[1734167254711,0.57720951,101720.0,101700.0,2.2016405]
[1734167254911,0.57720951,101720.0,101710.0,0.10994825]
[1734167255407,0.57670951,101720.0,101710.0,0.10994825]
[1734167256327,0.45946274,101720.0,101710.0,0.10994825]
[1734167257307,0.09866274,101720.0,101710.0,0.10994825]
[1734167257716,0.09866274,101720.0,101710.0,1.60994825]
[1734167258412,0.09816274,101720.0,101710.0,1.60994825]
[1734167260911,0.09816274,101720.0,101710.0,1.65296955]
[1734167262414,0.09816274,101720.0,101710.0,1.66314644]
[1734167263418,0.09816274,101720.0,101710.0,1.65296955]
[1734167263915,0.14731874,101720.0,101710.0,1.65296955]
[1734167264616,0.50811874,101720.0,101710.0,1.65296955]
[1734167264813,0.62586551,101720.0,101710.0,1.65296955]
[1734167274752,0.26506551,101720.0,101710.0,1.65296955]
[1734167275141,0.62586551,101720.0,101710.0,1.65296955]
[1734167275554,0.26506551,101720.0,101710.0,1.65296955]
[1734167275748,0.62586551,101720.0,101710.0,1.65296955]
[1734167278731,0.62586551,101720.0,101710.0,0.15296955]
[1734167279029,0.62586551,101720.0,101710.0,1.65296955]
[1734167279225,0.53763,101720.0,101710.0,1.65296955]
[1734167280431,0.17683,101720.0,101710.0,1.65296955]
[1734167280740,0.53763,101720.0,101710.0,1.65296955]
[1734167284243,0.68489804,101720.0,101710.0,1.65296955]
[1734167284946,0.53763,101720.0,101710.0,1.65296955]
[1734167286034,0.68489804,101720.0,101710.0,1.65296955]
[1734167286438,0.53763,101720.0,101710.0,1.65296955]
[1734167287631,0.68489804,101720.0,101710.0,1.65296955]
[1734167288237,0.53763,101720.0,101710.0,1.65296955]
[1734167289936,0.17683,101720.0,101710.0,1.65296955]
[1734167290144,0.53763,101720.0,101710.0,1.65296955]
[1734167293541,0.53763,101720.0,101710.0,1.60994825]
[1734167294143,0.68489804,101720.0,101710.0,1.60994825]
[1734167295036,0.68489804,101720.0,101710.0,1.65297142]
[1734167302642,0.56715127,101720.0,101710.0,1.65297142]
[1734167302843,0.68510615,101720.0,101710.0,1.65297142]
[1734167307443,0.68510615,101720.0,101710.0,1.67068142]
[1734167321360,0.32430615,101720.0,101710.0,1.67068142]
[1734167321559,0.68510615,101720.0,101710.0,1.67068142]
[1734167326967,0.32430615,101720.0,101710.0,1.67068142]
[1734167327164,0.68510615,101720.0,101710.0,1.67068142]
[1734167327664,0.56715127,101720.0,101710.0,1.67068142]
[1734167330461,0.56715127,101720.0,101710.0,1.62765825]
[1734167331468,0.56715127,101720.0,101710.0,1.67068276]
[1734167335564,0.56715127,101720.0,101710.0,1.62765825]
[1734167335971,0.56715127,101720.0,101710.0,1.67068299]
[1734167338665,0.68508,101720.0,101710.0,1.67068299]
[1734167339269,0.68508,101720.0,101710.0,0.17068299]
[1734167339664,0.68508,101720.0,101710.0,1.67068299]
[1734167340068,0.56715127,101720.0,101710.0,1.67068299]
[1734167343366,0.56715127,101720.0,101710.0,1.60989574]
[1734167343571,0.56715127,101720.0,101710.0,0.06073474]
[1734167343774,0.65973852,101720.0,101710.0,0.01771]
[1734167343977,0.68935645,101720.0,101710.0,0.01771]
[1734167348588,0.83656299,101720.0,101710.0,0.01771]
[1734167348989,0.65967702,101720.0,101710.0,0.07849725]
[1734167349383,0.59888977,101720.0,101710.0,0.07849725]
[1734167349988,0.77577574,101720.0,101710.0,0.07849725]
[1734167350888,0.83656299,101720.0,101710.0,0.07849725]
[1734167351479,0.65967702,101720.0,101710.0,0.07849725]
[1734167354387,0.65967702,101720.0,101710.0,0.01771]
[1734167355490,0.83656299,101720.0,101710.0,0.06073998]
[1734167357401,0.65967702,101720.0,101710.0,0.01771]
[1734167361103,0.83656299,101720.0,101710.0,0.06073994]
[1734167363602,0.83656299,101720.0,101710.0,0.01771]
[1734167365911,0.68935645,101720.0,101710.0,0.01771]
[1734167366100,0.83657166,101720.0,101710.0,0.01771]
[1734167366495,0.68935645,101720.0,101710.0,0.01771]
[1734167366811,0.8365843,101720.0,101710.0,0.01771]
[1734167367307,0.65969833,101720.0,101710.0,0.01771]
[1734167367510,0.8365843,101720.0,101710.0,0.01771]
[1734167368803,0.65969833,101720.0,101710.0,0.01771]
[1734167369008,1.0501437,101720.0,101710.0,0.01771]
[1734167369306,1.07898103,101720.0,101690.0,0.0315]
[1734167369503,1.09657523,101700.0,101690.0,0.04353459]
[1734167369809,1.09657523,101700.0,101690.0,1.54353459]
[1734167370707,0.88855299,101700.0,101690.0,1.60382184]
[1734167371501,0.88855299,101700.0,101690.0,1.60432184]
[1734167372612,0.88855299,101700.0,101690.0,1.60382184]
[1734167373603,1.03578798,101700.0,101690.0,1.60432184]
[1734167373801,1.03578798,101700.0,101690.0,1.54353459]
[1734167374002,1.03578798,101700.0,101690.0,1.60432184]
[1734167374605,0.88855299,101700.0,101690.0,1.60432184]
[1734167376504,0.94934024,101700.0,101690.0,1.60432184]
[1734167376709,0.22774024,101700.0,101690.0,1.60432184]
[1734167377013,0.94934024,101700.0,101690.0,1.60432184]
[1734167378010,0.95927357,101700.0,101690.0,1.60432184]
[1734167378808,0.89848632,101700.0,101690.0,1.60432184]
[1734167379121,0.98678728,101700.0,101690.0,1.65349184]
[1734167379311,0.98678728,101700.0,101690.0,1.68399184]
[1734167379615,0.98678728,101700.0,101690.0,1.68349184]
[1734167391712,0.89848632,101700.0,101690.0,1.68349184]
[1734167393620,0.89848632,101700.0,101690.0,0.15299184]
[1734167394121,0.89848632,101700.0,101690.0,0.10995725]
[1734167394322,0.89848632,101700.0,101690.0,0.15299039]
[1734167395316,0.89848632,101700.0,101690.0,0.09220314]
[1734167395521,0.89848632,101700.0,101690.0,0.15299039]
[1734167399520,0.89848632,101700.0,101690.0,1.59220314]
[1734167399715,0.89848632,101700.0,101690.0,0.04303314]
[1734167399924,1.04572131,101700.0,101690.0,0.04303314]
[1734167400519,1.04572131,101700.0,101690.0,0.10382039]
[1734167401621,1.07822131,101700.0,101690.0,0.10382039]
[1734167404916,0.96043332,101700.0,101690.0,0.10382039]
[1734167405126,0.96043332,101700.0,101690.0,0.04303314]
[1734167405430,0.04917,101690.0,101680.0,2.17206025]
[1734167405630,0.61625038,101690.0,101680.0,2.21509736]
[1734167406032,0.25545038,101690.0,101680.0,2.21509736]
[1734167406232,0.61625038,101690.0,101680.0,2.21509736]
[1734167408531,0.64905038,101690.0,101680.0,2.21509736]
[1734167409122,0.64905038,101690.0,101680.0,2.18359736]
[1734167415038,0.64905038,101690.0,101680.0,2.12281011]
[1734167415335,0.64905038,101690.0,101680.0,2.18359736]
[1734167417738,0.64905038,101690.0,101680.0,2.12281011]
[1734167418036,0.64905038,101690.0,101680.0,2.18359736]
[1734167421636,0.64905038,101690.0,101680.0,2.21599736]
[1734167422229,0.61625038,101690.0,101680.0,2.21599736]
[1734167422441,0.61625038,101690.0,101680.0,2.27678461]
[1734167423236,0.61625038,101690.0,101680.0,2.21599736]
[1734167423639,0.25545038,101690.0,101680.0,2.21599736]
[1734167423837,0.61625038,101690.0,101680.0,2.21599736]
[1734167424736,0.25545038,101690.0,101680.0,2.21599736]
[1734167425040,0.61625038,101690.0,101680.0,2.21599736]
[1734167432956,0.25545038,101690.0,101680.0,2.21599736]
[1734167433257,0.61625038,101690.0,101680.0,2.21599736]
[1734167436457,0.20628038,101690.0,101680.0,2.27678461]
[1734167436658,0.20637173,101700.0,101690.0,0.04917]
[1734167436851,0.08844654,101700.0,101690.0,0.60627593]
[1734167437163,0.53090854,101710.0,101700.0,0.049165]
[1734167437359,0.53090854,101710.0,101700.0,0.27787093]
[1734167437663,0.53040854,101710.0,101700.0,0.27787093]
[1734167438662,0.53090854,101710.0,101700.0,0.27787093]
[1734167438858,0.54065891,101710.0,101700.0,0.27787093]
[1734167439253,0.54065891,101710.0,101700.0,0.21708368]
[1734167439759,0.54015891,101710.0,101700.0,0.21708368]
[1734167440558,0.54065891,101710.0,101700.0,0.21708368]
[1734167440754,0.54065891,101710.0,101700.0,0.27787093]
[1734167441856,0.50865891,101710.0,101700.0,0.27787093]
[1734167443154,0.42021237,101710.0,101700.0,0.27787093]
[1734167443566,0.37055037,101710.0,101700.0,0.27787093]
[1734167445758,0.41971037,101710.0,101700.0,0.27787093]
[1734167446358,0.41971037,101710.0,101700.0,0.21708368]
[1734167448471,0.41971037,101710.0,101700.0,0.27787093]
[1734167451168,0.3608,101710.0,101700.0,0.27787093]
[1734167456470,0.40996,101710.0,101700.0,0.21708368]
[1734167460172,0.40996,101710.0,101700.0,0.15298368]
[1734167460474,0.53090654,101710.0,101700.0,0.10995225]
[1734167461181,0.44246,101710.0,101700.0,0.15297858]
[1734167461676,0.44246,101710.0,101700.0,0.10995225]
[1734167461878,0.53090654,101710.0,101700.0,0.10995225]
[1734167462379,0.53090654,101710.0,101700.0,0.213766]
[1734167462971,0.44246,101710.0,101700.0,0.213766]
[1734167463179,0.53090654,101710.0,101700.0,0.213766]
[1734167463380,0.44246,101710.0,101700.0,0.213766]
[1734167464289,0.53090654,101710.0,101700.0,0.213766]
[1734167464767,0.53090654,101710.0,101700.0,1.713766]
[1734167464970,0.59169379,101710.0,101700.0,1.5921915]
[1734167465279,0.62379379,101710.0,101700.0,0.049165]
[1734167465574,0.56300654,101710.0,101700.0,0.049165]
[1734167465780,0.56300654,101710.0,101700.0,0.09219498]
[1734167466076,0.47456,101710.0,101700.0,0.09219498]
[1734167467274,0.47456,101710.0,101700.0,0.15298223]
[1734167470374,0.56294307,101710.0,101700.0,0.15298223]
[1734167470983,0.47456,101710.0,101700.0,0.15298223]
[1734167473385,0.56292201,101710.0,101700.0,0.15298223]
[1734167479493,0.20212201,101710.0,101700.0,0.15298223]
[1734167479685,0.56292201,101710.0,101700.0,0.15298223]
[1734167479885,0.20212201,101710.0,101700.0,0.15298223]
[1734167480086,0.56292201,101710.0,101700.0,0.15298223]
[1734167481595,0.53082201,101710.0,101700.0,0.15298223]
[1734167486806,0.49832201,101710.0,101700.0,0.15298223]
[1734167487000,0.49832201,101710.0,101700.0,0.18348223]
[1734167497218,0.61619601,101710.0,101700.0,0.19337917]
[1734167497417,0.49832201,101710.0,101700.0,0.19337917]
[1734167498111,0.61619601,101710.0,101700.0,0.19337917]
[1734167498417,0.49832201,101710.0,101700.0,0.19337917]
[1734167498813,0.61619601,101710.0,101700.0,0.19337917]
[1734167501718,0.61619601,101710.0,101700.0,0.12269498]
[1734167501913,0.61619601,101710.0,101700.0,0.18348223]
[1734167502521,0.61619601,101710.0,101700.0,1.68348223]
[1734167503223,0.61619601,101710.0,101700.0,1.65298223]
[1734167518127,0.67698326,101710.0,101700.0,0.09219498]
[1734167518323,0.65162125,101710.0,101700.0,0.09219498]
[1734167519332,0.74005152,101710.0,101700.0,0.09219498]
[1734167520825,0.65162125,101710.0,101700.0,0.09219498]
[1734167521327,0.74004267,101710.0,101700.0,0.09219498]
[1734167522129,0.65162125,101710.0,101700.0,0.09219498]
[1734167529634,0.73999883,101710.0,101700.0,0.09219498]
[1734167532732,0.37919883,101710.0,101700.0,0.09219498]
[1734167532941,0.73999883,101710.0,101700.0,0.09219498]
[1734167533532,0.65162125,101710.0,101700.0,0.09219498]
[1734167533733,0.73999363,101710.0,101700.0,0.09219498]
[1734167534237,0.65162125,101710.0,101700.0,0.09219498]
[1734167534831,0.29082125,101710.0,101700.0,0.09219498]
[1734167535027,0.65162125,101710.0,101700.0,0.09219498]
[1734167537645,0.670875,101710.0,101700.0,0.09219498]
[1734167538240,0.670875,101710.0,101700.0,0.04302998]
[1734167538441,0.81810999,101710.0,101700.0,0.04302998]
[1734167543241,0.049165,101700.0,101690.0,2.10995325]
[1734167543442,0.61612195,101700.0,101690.0,2.15298512]
[1734167543642,0.49831798,101700.0,101690.0,2.15298512]
[1734167543839,0.25532195,101700.0,101690.0,2.15298512]
[1734167544043,0.61612195,101700.0,101690.0,2.15298512]
[1734167544347,0.49831798,101700.0,101690.0,2.15298512]
[1734167544850,0.13751798,101700.0,101690.0,2.15298512]
[1734167545043,0.49831798,101700.0,101690.0,2.15298512]
[1734167545443,0.13751798,101700.0,101690.0,2.15298512]
[1734167545639,0.49831798,101700.0,101690.0,2.15298512]
[1734167545845,0.13751798,101700.0,101690.0,2.15298512]
[1734167546038,0.49831798,101700.0,101690.0,2.15298512]
[1734167546446,0.13751798,101700.0,101690.0,2.15298512]
[1734167546643,0.49831798,101700.0,101690.0,2.15298512]
[1734167546952,0.13751798,101700.0,101690.0,2.15298512]
[1734167547152,0.49831798,101700.0,101690.0,2.15298512]
[1734167550655,0.5081956,101700.0,101690.0,2.15298512]
[1734167551049,0.5081956,101700.0,101690.0,2.09219787]
[1734167551245,0.56898285,101700.0,101690.0,2.09219787]
[1734167551453,0.56898285,101700.0,101690.0,0.54303187]
[1734167551648,0.04917,101690.0,101680.0,0.0005]
[1734167551945,0.73579621,101690.0,101670.0,2.081379]
[1734167552151,0.61984178,101680.0,101670.0,0.04304158]
[1734167552353,0.77004575,101680.0,101670.0,0.04304158]
[1734167552553,0.68175247,101680.0,101660.0,0.549184]
[1734167552755,0.47076625,101670.0,101660.0,0.59222857]
[1734167554355,0.47076625,101670.0,101660.0,0.549184]
[1734167554763,0.47076625,101670.0,101660.0,0.549684]
[1734167556157,0.47076625,101670.0,101660.0,0.61047125]
[1734167556158,0.049179,101670.0,101660.0,0.61047125]
[1734167557055,0.049179,101670.0,101660.0,0.90467282]
[1734167557355,0.049179,101670.0,101660.0,0.96351313]
[1734167558156,0.049179,101670.0,101660.0,2.46351313]
[1734167558558,0.049179,101670.0,101660.0,2.50655465]
[1734167561251,0.049179,101670.0,101660.0,2.80058091]
[1734167562161,0.409979,101670.0,101660.0,2.44753903]
[1734167562763,0.409979,101670.0,101660.0,2.80058091]
[1734167563257,0.409979,101670.0,101660.0,2.44753903]
[1734167563460,0.409979,101670.0,101660.0,2.80058091]
[1734167563757,0.47076625,101670.0,101660.0,2.44753903]
[1734167565653,0.409979,101670.0,101660.0,2.44753903]
[1734167566160,0.409979,101670.0,101660.0,2.80058091]
[1734167568757,0.409979,101670.0,101660.0,2.44753903]
[1734167569264,0.409979,101670.0,101660.0,2.80058091]
[1734167571561,0.409979,101670.0,101660.0,2.40449751]
[1734167573057,0.409979,101670.0,101660.0,2.34371026]
[1734167573260,0.409979,101670.0,101660.0,2.40449751]
[1734167575072,0.47076625,101670.0,101660.0,2.34371026]
[1734167575366,0.50396625,101670.0,101660.0,2.34371026]
[1734167576260,0.50396625,101670.0,101660.0,0.84371026]
[1734167576460,0.50396625,101670.0,101660.0,1.23979593]
[1734167576863,0.50396625,101670.0,101660.0,2.73979593]
[1734167578661,0.50396625,101670.0,101660.0,1.88675405]
[1734167578866,0.56756625,101670.0,101660.0,1.88625405]
[1734167579264,0.65578111,101670.0,101660.0,1.88625405]
[1734167580761,0.65578111,101670.0,101660.0,2.19011193]
[1734167581259,0.77358508,101670.0,101660.0,2.42626092]
[1734167581667,0.77358508,101670.0,101660.0,2.19011193]
[1734167585471,0.65578111,101670.0,101660.0,2.19011193]
[1734167590678,0.65578111,101670.0,101660.0,1.83707005]
[1734167591173,0.65578111,101670.0,101660.0,2.19011193]
[1734167591467,0.65578111,101670.0,101660.0,1.83707005]
[1734167591862,0.77358508,101670.0,101660.0,1.83707005]
[1734167592362,1.13438508,101670.0,101660.0,1.83707005]
[1734167594066,1.01658111,101670.0,101660.0,1.83707005]
[1734167594266,1.13438508,101670.0,101660.0,1.83707005]
[1734167594574,1.01658111,101670.0,101660.0,1.83707005]
[1734167594775,1.01658111,101670.0,101660.0,0.33707005]
[1734167596266,1.13438508,101670.0,101660.0,0.33707005]
[1734167598069,0.41278508,101670.0,101660.0,0.33707005]
[1734167598370,1.13438508,101670.0,101660.0,0.33707005]
[1734167598768,0.41278508,101670.0,101660.0,0.33707005]
[1734167599169,1.13438508,101670.0,101660.0,0.33707005]
[1734167601370,0.41278508,101670.0,101660.0,0.33707005]
[1734167601570,1.13438508,101670.0,101660.0,0.33707005]
[1734167601770,0.41278508,101670.0,101660.0,0.33707005]
[1734167601967,1.13438508,101670.0,101660.0,0.33707005]
[1734167603281,1.13438508,101670.0,101660.0,0.69011193]
[1734167603483,1.13438508,101670.0,101660.0,0.33707005]
[1734167605277,1.04617022,101670.0,101660.0,0.69011193]
[1734167606381,0.32457022,101670.0,101660.0,0.69011193]
[1734167606582,1.04617022,101670.0,101660.0,0.69011193]
[1734167606881,0.32457022,101670.0,101660.0,0.69011193]
[1734167607181,1.19340521,101670.0,101660.0,0.69011193]
[1734167607874,0.47180521,101670.0,101660.0,0.69011193]
[1734167608273,1.19340521,101670.0,101660.0,0.69011193]
[1734167609480,0.47180521,101670.0,101660.0,0.69011193]
[1734167609679,1.19340521,101670.0,101660.0,0.69011193]
[1734167614582,1.25419246,101670.0,101660.0,0.69011193]
[1734167614895,1.25419246,101670.0,101660.0,0.33707005]
[1734167614896,1.31307048,101670.0,101660.0,0.33707005]
[1734167615080,1.31307048,101670.0,101660.0,0.04304379]
[1734167616290,0.049185,101660.0,101650.0,0.71296814]
[1734167616584,0.73755443,101660.0,101650.0,0.7560212]
[1734167616989,0.73755443,101660.0,101650.0,0.7555212]
[1734167617884,0.73755443,101660.0,101650.0,0.7560212]
[1734167618590,0.73755443,101660.0,101650.0,0.40297932]
[1734167618986,0.73755443,101660.0,101650.0,0.40247932]
[1734167619987,1.09835443,101660.0,101650.0,0.40297932]
[1734167620985,1.09835443,101660.0,101650.0,0.40247932]
[1734167621282,1.10851527,101660.0,101650.0,0.40247932]
[1734167621886,1.10851527,101660.0,101650.0,0.40297932]
[1734167622891,1.10851527,101660.0,101650.0,0.40247932]
[1734167623986,1.10851527,101660.0,101650.0,0.40297932]
[1734167624892,1.10851527,101660.0,101650.0,0.40247932]
[1734167625782,1.10851527,101660.0,101650.0,0.36927932]
[1734167625988,1.10851527,101660.0,101650.0,0.36977932]
[1734167626478,1.10851527,101660.0,101650.0,0.33757932]
[1734167626892,1.10851527,101660.0,101650.0,0.29402626]
[1734167627090,1.02023173,101660.0,101650.0,0.52987102]
[1734167627484,1.02023173,101660.0,101650.0,0.23584476]
[1734167627887,1.02023173,101660.0,101650.0,0.23634476]
[1734167628987,1.02023173,101660.0,101650.0,0.23584476]
[1734167629302,1.04030158,101660.0,101650.0,0.23584476]
[1734167629892,0.91872708,101660.0,101650.0,0.23634476]
[1734167630091,1.04030158,101660.0,101650.0,0.23634476]
[1734167631095,1.10108883,101660.0,101650.0,0.23634476]
[1734167631387,1.13061243,101660.0,101650.0,0.23634476]
[1734167631594,1.24820585,101660.0,101650.0,0.23634476]
[1734167631785,1.06982518,101660.0,101650.0,0.23634476]
[1734167632697,1.13061243,101660.0,101650.0,0.23634476]
[1734167633584,1.13061243,101660.0,101650.0,0.0005]
[1734167634597,1.06982518,101660.0,101650.0,0.0005]
[1734167635888,1.06982518,101660.0,101640.0,2.09257102]
[1734167636094,0.67647463,101650.0,101640.0,2.09257102]
[1734167636692,0.55893327,101650.0,101640.0,2.09257102]
[1734167636996,0.55893327,101650.0,101640.0,2.13613]
[1734167637193,0.55893327,101650.0,101640.0,1.90028524]
[1734167637499,0.55893327,101650.0,101640.0,1.93288524]
[1734167638093,0.55893327,101650.0,101640.0,1.93238524]
[1734167638997,0.55893327,101650.0,101640.0,1.93288524]
[1734167639894,0.55893327,101650.0,101640.0,1.93238524]
[1734167640896,0.55893327,101650.0,101640.0,0.66864395]
[1734167640897,0.67647463,101650.0,101640.0,0.66864395]
[1734167641394,0.55893327,101650.0,101640.0,0.66864395]
[1734167641599,0.67647463,101650.0,101640.0,0.66864395]
[1734167641993,0.67647463,101650.0,101640.0,0.66814395]
[1734167642391,0.67647463,101650.0,101640.0,0.63554395]
[1734167642998,0.67647463,101650.0,101640.0,0.63604395]
[1734167643695,0.97648738,101650.0,101640.0,0.63604395]
[1734167643899,1.03727463,101650.0,101640.0,0.63554395]
[1734167644494,1.03727463,101650.0,101640.0,0.39978524]
[1734167644901,1.03727463,101650.0,101640.0,0.40028524]
[1734167652407,1.03727463,101650.0,101640.0,0.75332712]
[1734167652797,0.91973327,101650.0,101640.0,0.75332712]
[1734167653703,1.03727463,101650.0,101640.0,0.75332712]
[1734167653907,0.97648738,101650.0,101640.0,0.75332712]
[1734167654099,1.03727463,101650.0,101640.0,0.75332712]
[1734167656003,1.03727463,101650.0,101640.0,0.75282712]
[1734167656401,0.97648738,101650.0,101640.0,0.75282712]
[1734167656605,1.03727463,101650.0,101640.0,0.70309971]
[1734167657106,0.97648738,101650.0,101640.0,0.45880086]
[1734167657307,1.03727463,101650.0,101640.0,0.70304182]
[1734167657907,1.03727463,101650.0,101640.0,0.45880086]
[1734167658603,1.03727463,101650.0,101640.0,0.70271974]
[1734167661199,1.06967463,101650.0,101640.0,0.67271974]
[1734167661399,1.06967463,101650.0,101640.0,0.67336841]
[1734167661605,0.98151861,101650.0,101640.0,0.67336841]
[1734167661811,1.06983204,101650.0,101640.0,0.67336841]
[1734167662116,0.98151861,101650.0,101640.0,0.96850123]
[1734167662614,0.98151861,101650.0,101640.0,0.72393368]
[1734167663315,0.98151861,101650.0,101640.0,0.69123368]
[1734167663316,1.18954085,101650.0,101640.0,0.69123368]
[1734167663611,1.18954085,101650.0,101640.0,0.3381918]
[1734167663817,1.22034085,101650.0,101640.0,0.3381918]
[1734167664015,1.25344085,101650.0,101640.0,0.3381918]
[1734167665814,1.13186635,101650.0,101640.0,0.3381918]
[1734167666210,1.25344085,101650.0,101640.0,0.3381918]
[1734167666410,1.13186635,101650.0,101640.0,0.57424637]
[1734167666910,1.25344085,101650.0,101640.0,0.57424637]
[1734167669110,1.25344085,101650.0,101640.0,0.53118739]
[1734167670310,1.13589949,101650.0,101640.0,0.27908658]
[1734167670509,1.13589949,101650.0,101640.0,0.23602698]
[1734167675323,1.01432499,101650.0,101640.0,0.23602698]
[1734167675625,1.13589949,101650.0,101640.0,0.23602698]
[1734167676922,1.07511224,101650.0,101640.0,0.23602698]
[1734167677434,1.15575256,101650.0,101640.0,0.23602698]
[1734167681423,1.06186531,101650.0,101640.0,0.23602698]
[1734167681731,1.1794468,101650.0,101640.0,0.23602698]
[1734167681926,1.03221181,101650.0,101640.0,0.23602698]
[1734167682825,0.97142456,101650.0,101640.0,0.23602698]
[1734167683027,1.03221181,101650.0,101640.0,0.23602698]
[1734167683420,1.00141181,101650.0,101640.0,0.23602698]
[1734167683827,1.00141181,101650.0,101640.0,0.26842698]
[1734167685936,1.1486468,101650.0,101640.0,0.26842698]
[1734167686123,1.00141181,101650.0,101640.0,0.26842698]
[1734167686523,1.15263981,101650.0,101630.0,0.27653476]
[1734167686723,1.15263981,101650.0,101610.0,0.46632539]
[1734167686724,0.049205,101620.0,101610.0,0.46632539]
[1734167686937,0.049205,101620.0,101610.0,1.26044645]
[1734167687224,0.049205,101620.0,101610.0,1.57543158]
[1734167687531,0.049205,101620.0,101610.0,0.89055065]
[1734167687745,0.10999225,101620.0,101610.0,0.89055065]
[1734167688120,0.10999225,101620.0,101610.0,0.89081036]